bitfinex/quotes_SOLUSD_20240912
["timestamp","ask_amount","ask_price","bid_price","bid_amount"]
[1726150306340,12.5329,134.91,134.89,14.79755141]
[1726150308740,12.5329,134.91,134.87,14.79755141]
[1726150308941,1.8534906,134.9,134.87,14.79755141]
[1726150309660,14.38638498,134.91,134.87,14.79755141]
[1726150309954,23.776884,134.9,134.85,14.79755141]
[1726150310158,23.776884,134.88,134.84,1.29089961]
[1726150310457,1.85406408,134.87,134.84,16.08845102]
[1726150310637,23.776884,134.88,134.84,16.08845102]
[1726150316648,23.776884,134.86,134.84,1.29089961]
[1726150317650,23.776884,134.86,134.83,4.2352627]
[1726150318162,1.85421794,134.85,134.83,4.2352627]
[1726150318666,1.85427403,134.84,134.83,4.2352627]
[1726150318960,23.776884,134.86,134.83,4.2352627]
[1726150320448,23.776884,134.86,134.84,14.79755141]
[1726150321243,23.776884,134.86,134.83,4.2352627]
[1726150322845,12.2041,134.87,134.84,14.79755141]
[1726150325285,12.2041,134.87,134.86,14.79755141]
[1726150325582,30.9792,134.89,134.86,14.79755141]
[1726150326353,30.9792,134.89,134.88,14.79755141]
[1726150326558,12.1362,134.91,134.88,14.79755141]
[1726150330171,31.5747,134.93,134.9,14.79755141]
[1726150330368,12.7906,134.94,134.92,14.79755141]
[1726150330787,32.3229,134.96,134.92,14.79755141]
[1726150331086,32.3229,134.96,134.95,14.79755141]
[1726150332093,32.3229,134.96,134.93,14.79755141]
[1726150333008,32.3229,134.96,134.95,14.79755141]
[1726150333577,0.2652627,134.98,134.95,14.79755141]
[1726150333781,0.2652627,134.98,134.97,14.79755141]
[1726150335292,33.4160627,135.02,134.98,20.0]
[1726150335613,33.4160627,135.02,135.01,14.79755141]
[1726150335910,33.4160627,135.02,134.9,20.0]
[1726150336200,33.4160627,135.02,134.95,14.79755141]
[1726150336201,1.85233092,135.01,134.95,14.79755141]
[1726150336785,23.776884,135.0,134.95,14.79755141]
[1726150336985,1.85230402,134.99,134.95,14.79755141]
[1726150337895,23.776884,135.01,134.97,14.79755141]
[1726150338486,23.776884,135.01,134.99,14.79755141]
[1726150338686,33.4160627,135.02,134.99,14.79755141]
[1726150339212,33.4160627,135.02,135.01,14.79755141]
[1726150339412,0.2652627,135.02,135.01,14.79755141]
[1726150340287,0.2652627,135.02,134.99,23.0733461]
[1726150340487,0.2652627,135.02,135.01,23.0733461]
[1726150340688,33.1198627,135.06,135.02,20.0]
[1726150340895,33.1198627,135.06,135.04,23.0733461]
[1726150341110,33.1198627,135.06,135.02,43.0733461]
[1726150343397,0.2652627,135.06,135.04,23.0733461]
[1726150343599,0.2652627,135.06,135.05,20.0]
[1726150343801,42.8582627,135.1,135.05,20.0]
[1726150344022,42.8582627,135.1,135.06,23.0733461]
[1726150344322,42.8582627,135.1,134.99,0.7371]
[1726150344488,42.8582627,135.1,135.05,20.0]
[1726150345291,23.776884,135.09,135.05,20.0]
[1726150345492,42.8582627,135.1,135.05,20.0]
[1726150347094,42.8582627,135.1,135.06,23.0733461]
[1726150348223,23.776884,135.09,135.05,20.0]
[1726150350018,23.776884,135.09,135.06,23.0733461]
[1726150351217,42.8582627,135.1,135.07,20.0]
[1726150354518,0.2652627,135.1,135.09,20.0]
[1726150354721,45.5825,135.13,135.09,20.0]
[1726150354901,0.2652627,135.14,135.12,23.0733461]
[1726150355303,0.2652627,135.14,135.13,20.0]
[1726150356703,12.7297,135.16,135.13,20.0]
[1726150356924,12.7297,135.16,135.1,23.0733461]
[1726150356925,0.0992418,135.14,135.11,20.0]
[1726150357112,0.0992418,135.14,135.13,23.0733461]
[1726150357429,0.0992418,135.14,135.13,43.1988361]
[1726150358211,30.9188,135.17,135.13,43.1988361]
[1726150358212,30.9188,135.17,135.14,20.0]
[1726150361632,30.9188,135.17,135.15,23.0733461]
[1726150361942,0.3454782,135.18,135.16,20.0]
[1726150362524,0.3454782,135.18,135.15,20.0]
[1726150362839,0.3454782,135.18,135.17,20.0]
[1726150366217,0.3454782,135.18,135.16,23.0733461]
[1726150366218,0.3454782,135.18,135.15,20.0]
[1726150366544,24.1223622,135.18,135.15,20.0]
[1726150366836,25.972071,135.18,135.13,20.0]
[1726150367044,1.84970783,135.17,135.05,6.7195]
[1726150367231,31.7386,135.15,135.1,23.0733461]
[1726150367748,31.7386,135.15,135.12,23.0733461]
[1726150368346,31.7386,135.15,135.13,20.0]
[1726150370245,31.7386,135.15,135.1,23.0733461]
[1726150370434,31.7386,135.15,135.11,20.0]
[1726150370823,12.8184,135.14,135.11,20.0]
[1726150372923,14.66856411,135.14,135.11,20.0]
[1726150373123,14.66856411,135.14,135.06,7.432]
[1726150373124,14.66856411,135.14,135.09,20.0]
[1726150373348,12.8184,135.14,135.11,20.0]
[1726150376554,12.8184,135.14,135.12,23.0733461]
[1726150377355,11.53022136,135.14,135.12,23.0733461]
[1726150377859,31.7386,135.15,135.13,20.0]
[1726150380138,31.7386,135.15,135.14,14.73897995]
[1726150381252,31.7386,135.15,135.07,7.74056801]
[1726150381253,31.7386,135.15,135.08,20.0]
[1726150381428,31.7386,135.15,135.09,0.25098]
[1726150381636,31.7386,135.15,135.13,20.0]
[1726150382540,31.7386,135.15,135.14,14.73897995]
[1726150383051,31.7386,135.15,135.13,20.0]
[1726150384049,1.85010515,135.14,135.12,14.73897995]
[1726150384269,12.2935,135.13,135.07,7.74056801]
[1726150384432,12.2935,135.13,135.1,14.73897995]
[1726150384750,12.2935,135.13,135.07,7.74056801]
[1726150384751,12.2935,135.13,135.12,14.73897995]
[1726150388256,12.2935,135.13,135.11,20.0]
[1726150388257,12.2935,135.13,135.11,14.73897995]
[1726150389966,23.776884,135.12,135.07,14.43266915]
[1726150390135,54.187984,135.1,135.07,6.69210114]
[1726150390334,1.85095368,135.09,135.05,14.73897995]
[1726150390531,54.187984,135.1,135.05,14.73897995]
[1726150391968,54.187984,135.1,135.06,20.0]
[1726150392176,30.4111,135.1,135.06,20.0]
[1726150392353,30.4111,135.1,135.07,14.73897995]
[1726150393253,30.4111,135.1,135.09,14.73897995]
[1726150396168,12.2935,135.13,135.09,14.73897995]
[1726150396365,12.2935,135.13,135.1,20.0]
[1726150396555,12.2935,135.13,135.11,14.73897995]
[1726150397881,32.4821,135.14,135.12,20.0]
[1726150398051,32.4821,135.14,135.13,14.73897995]
[1726150398252,12.189,135.16,135.13,34.73897995]
[1726150401577,12.189,135.16,135.13,20.0]
[1726150401884,23.776884,135.15,135.12,20.0]
[1726150402182,25.62704324,135.15,135.12,20.0]
[1726150402380,12.189,135.16,135.13,14.73897995]
[1726150403768,0.3454782,135.18,135.16,20.0]
[1726150403971,0.3454782,135.18,135.17,14.73897995]
[1726150406164,0.3454782,135.18,135.14,23.02070478]
[1726150406379,0.3454782,135.18,135.15,20.0]
[1726150411169,0.3454782,135.18,135.16,23.02070478]
[1726150412989,0.3454782,135.18,135.17,20.0]
[1726150415871,0.20647,135.2,135.19,43.02070478]
[1726150418584,0.20647,135.2,135.17,0.12549]
[1726150418896,0.20647,135.2,135.19,43.02070478]
[1726150421011,43.0729,135.26,135.2,20.0]
[1726150421176,1.84864854,135.25,135.2,20.0]
[1726150422086,43.0729,135.26,135.2,20.0]
[1726150422503,23.776884,135.25,135.2,20.0]
[1726150426112,25.62560416,135.25,135.21,14.72217778]
[1726150426408,25.62560416,135.25,135.22,20.0]
[1726150426596,43.0729,135.26,135.22,20.0]
[1726150426597,43.0729,135.26,135.23,14.72217778]
[1726150427110,39.66463422,135.26,135.23,14.72217778]
[1726150427996,25.62542596,135.25,135.21,14.72217778]
[1726150428194,39.66463422,135.26,135.22,20.0]
[1726150429622,25.62546448,135.25,135.23,14.72217778]
[1726150430318,25.62546448,135.25,135.21,14.72217778]
[1726150430494,25.62546448,135.25,135.22,20.0]
[1726150430699,23.776884,135.25,135.22,20.0]
[1726150431292,23.776884,135.23,135.18,3.0196798]
[1726150431607,23.776884,135.25,135.21,20.0]
[1726150434513,25.62578022,135.25,135.21,20.0]
[1726150434919,25.62578022,135.25,135.17,20.0]
[1726150435216,25.62578022,135.25,135.23,14.72217778]
[1726150435399,24.9739332,135.26,135.24,20.0]
[1726150437407,0.0970968,135.28,135.26,20.0]
[1726150438099,0.0970968,135.28,135.24,20.0]
[1726150439818,0.0970968,135.28,135.26,20.0]
[1726150440526,0.0970968,135.28,135.27,34.72217778]
[1726150440748,32.4537,135.31,135.27,34.72217778]
[1726150440898,32.4537,135.31,135.28,20.0]
[1726150441404,32.4537,135.31,135.27,14.72217778]
[1726150441405,1.84787915,135.33,135.3,20.0]
[1726150441611,1.84773722,135.32,135.3,20.0]
[1726150441808,1.8477383,135.33,135.3,20.0]
[1726150442012,1.84773806,135.32,135.3,20.0]
[1726150442510,1.84773806,135.32,135.29,14.72217778]
[1726150442704,12.0789,135.34,135.29,14.72217778]
[1726150442905,1.84764303,135.33,135.29,14.72217778]
[1726150443125,12.0789,135.34,135.29,14.72217778]
[1726150443495,12.0789,135.34,135.3,20.0]
[1726150444313,12.0789,135.34,135.31,14.72217778]
[1726150445700,0.4111826,135.35,135.32,20.0]
[1726150445925,31.8518,135.36,135.33,14.72217778]
[1726150446920,12.734,135.37,135.34,20.0]
[1726150447122,31.4522,135.4,135.34,20.0]
[1726150447323,30.2884,135.35,135.31,3.04406214]
[1726150447620,30.2884,135.35,135.21,33.2023]
[1726150447621,1.84804034,135.34,135.27,14.72217778]
[1726150447819,30.2884,135.35,135.21,33.2023]
[1726150448029,30.2884,135.35,135.28,14.72217778]
[1726150448200,30.2884,135.35,135.3,14.72217778]
[1726150448408,30.2884,135.35,135.21,36.18826949]
[1726150448409,30.2884,135.35,135.28,22.97274003]
[1726150448606,30.2884,135.35,135.29,20.0]
[1726150449299,1.84755459,135.34,135.29,20.0]
[1726150449623,34.10955666,135.4,135.31,20.0]
[1726150449829,1.84709249,135.39,135.31,20.0]
[1726150450022,1.84709249,135.39,135.32,22.97274003]
[1726150450203,1.84709249,135.39,135.33,20.0]
[1726150451053,1.84709249,135.39,135.29,23.05803946]
[1726150451327,0.12549,135.38,135.29,20.0]
[1726150451506,0.25098,135.38,135.29,20.0]
[1726150451707,0.12549,135.37,135.28,2.95815826]
[1726150451914,23.776884,135.36,135.25,12.9953]
[1726150452120,23.776884,135.34,135.25,35.96804003]
[1726150452409,1.97331996,135.33,135.25,35.96804003]
[1726150452933,1.84786505,135.32,135.27,22.97274003]
[1726150453127,1.84786505,135.32,135.25,35.96804003]
[1726150453332,23.776884,135.34,135.26,20.0]
[1726150453632,1.97335397,135.33,135.26,20.0]
[1726150454207,1.84786739,135.32,135.26,20.0]
[1726150454811,1.97335627,135.33,135.26,20.0]
[1726150455225,1.84786627,135.33,135.26,20.0]
[1726150455425,23.776884,135.34,135.26,20.0]
[1726150455625,1.84773367,135.33,135.26,20.0]
[1726150455825,1.84764235,135.33,135.26,20.0]
[1726150456333,23.776884,135.34,135.26,20.0]
[1726150456542,1.84768121,135.32,135.26,20.0]
[1726150456706,23.902374,135.31,135.25,3.03314832]
[1726150456903,1.84817502,135.3,135.24,20.0]
[1726150457116,1.84815487,135.29,135.24,20.0]
[1726150457715,1.84814875,135.3,135.24,20.0]
[1726150458114,1.84814875,135.3,135.25,3.97386638]
[1726150458314,1.84814875,135.3,135.26,3.97386638]
[1726150458526,1.84814875,135.3,135.25,3.97386638]
[1726150458743,1.84814875,135.3,135.24,20.0]
[1726150459413,44.7554,135.32,135.26,20.0]
[1726150460535,1.84795697,135.31,135.26,20.0]
[1726150460847,23.776884,135.34,135.28,20.0]
[1726150461335,45.3912,135.35,135.28,20.0]
[1726150462586,45.3912,135.35,135.24,22.97274003]
[1726150462587,42.803,135.4,135.3,20.0]
[1726150463246,42.803,135.4,135.24,22.97274003]
[1726150463247,42.803,135.37,135.27,20.0]
[1726150463539,1.84812383,135.36,135.25,20.0]
[1726150463743,0.25098,135.35,135.28,20.0]
[1726150464229,2.09895143,135.35,135.28,20.0]
[1726150464546,23.776884,135.34,135.28,20.0]
[1726150464848,1.97336427,135.33,135.28,20.0]
[1726150465220,0.12549,135.33,135.28,20.0]
[1726150465419,1.97334425,135.33,135.28,20.0]
[1726150465627,0.12549,135.33,135.28,20.0]
[1726150466019,0.12549,135.35,135.28,20.0]
[1726150466230,0.12549,135.36,135.28,20.0]
[1726150466551,1.84767185,135.36,135.3,20.0]
[1726150466726,42.803,135.37,135.3,20.0]
[1726150468029,23.776884,135.36,135.3,20.0]
[1726150469320,1.84738468,135.35,135.3,20.0]
[1726150469521,23.776884,135.36,135.3,20.0]
[1726150469835,0.12549,135.35,135.3,20.0]
[1726150470255,23.776884,135.36,135.3,20.0]
[1726150470545,23.776884,135.36,135.28,23.01699448]
[1726150470751,0.12549,135.35,135.28,20.0]
[1726150470930,1.97316362,135.35,135.28,20.0]
[1726150471138,0.12549,135.35,135.28,20.0]
[1726150473551,23.776884,135.34,135.28,22.93222332]
[1726150473750,0.12549,135.33,135.28,2.93222332]
[1726150473933,23.776884,135.36,135.27,22.97274003]
[1726150474143,23.776884,135.34,135.27,22.97274003]
[1726150474451,1.84771025,135.33,135.27,22.97274003]
[1726150474624,23.776884,135.34,135.27,22.97274003]
[1726150474950,23.776884,135.34,135.28,20.0]
[1726150475260,0.12549,135.33,135.28,20.0]
[1726150475424,1.97341337,135.33,135.28,20.0]
[1726150475624,0.12549,135.33,135.28,20.0]
[1726150476233,1.97330924,135.33,135.28,20.0]
[1726150476754,0.12549,135.33,135.28,20.0]
[1726150477945,1.84781075,135.33,135.28,20.0]
[1726150478155,23.776884,135.34,135.3,14.70266249]
[1726150478375,23.776884,135.34,135.31,20.0]
[1726150480542,23.776884,135.36,135.32,14.70266249]
[1726150480749,23.776884,135.36,135.33,20.0]
[1726150481759,30.1489,135.37,135.33,20.0]
[1726150482166,32.7445,135.4,135.34,14.70266249]
[1726150482847,32.7445,135.4,135.35,20.0]
[1726150484052,33.1324086,135.4,135.35,20.0]
[1726150484359,33.1324086,135.4,135.36,5.9148167]
[1726150484568,34.97941232,135.4,135.37,5.9148167]
[1726150484737,34.97941232,135.4,135.38,5.9148167]
[1726150484738,25.74937772,135.39,135.38,5.9148167]
[1726150484951,25.74937772,135.39,135.35,20.0]
[1726150484952,23.902374,135.39,135.35,20.0]
[1726150485235,33.1324086,135.4,135.36,20.61748298]
[1726150485549,33.1324086,135.4,135.36,14.70266249]
[1726150485746,33.1324086,135.4,135.37,5.91205108]
[1726150485943,33.1324086,135.4,135.36,14.70266249]
[1726150486268,32.63482643,135.44,135.37,5.91148291]
[1726150486464,1.84660417,135.43,135.38,25.91148291]
[1726150486636,1.84657415,135.42,135.39,5.91148291]
[1726150486831,1.84657415,135.42,135.4,5.91148291]
[1726150487053,1.84657415,135.42,135.41,5.91148291]
[1726150487650,1.84652317,135.43,135.41,5.91148291]
[1726150487856,1.84652317,135.43,135.42,5.91148291]
[1726150490465,0.3111495,135.44,135.42,5.91148291]
[1726150490648,0.3111495,135.44,135.43,5.91148291]
[1726150491666,0.3111495,135.44,135.4,14.70266249]
[1726150491965,0.3111495,135.44,135.41,5.90703398]
[1726150492144,0.3111495,135.44,135.4,14.70266249]
[1726150492145,0.3111495,135.44,135.42,5.90703398]
[1726150492353,0.3111495,135.44,135.43,5.90703398]
[1726150494147,0.3111495,135.44,135.42,5.90658152]
[1726150494352,0.3111495,135.44,135.43,5.90658152]
[1726150494561,0.3111495,135.44,135.41,5.90658152]
[1726150494756,0.3111495,135.44,135.4,14.70266249]
[1726150494757,0.3111495,135.48,135.43,20.0]
[1726150494964,0.3111495,135.48,135.44,5.90658152]
[1726150495159,0.3111495,135.48,135.43,20.0]
[1726150495364,0.3111495,135.48,135.44,14.70266249]
[1726150495753,0.3111495,135.48,135.43,20.0]
[1726150496078,0.3111495,135.48,135.44,20.0]
[1726150497375,0.3111495,135.48,135.45,14.70266249]
[1726150497543,0.3111495,135.48,135.4,20.0]
[1726150497746,0.3111495,135.48,135.44,14.70266249]
[1726150498563,44.88346249,135.52,135.44,14.70266249]
[1726150498564,23.776884,135.51,135.44,14.70266249]
[1726150498765,23.776884,135.51,135.39,31.0638]
[1726150498766,30.30629,135.52,135.46,14.70266249]
[1726150498970,0.3111495,135.53,135.51,14.70266249]
[1726150499179,0.3111495,135.58,135.54,20.0]
[1726150499180,0.1004145,135.58,135.54,20.0]
[1726150499356,0.1004145,135.58,135.54,34.70266249]
[1726150500472,0.1004145,135.58,135.49,20.0]
[1726150500802,12.429,135.57,135.51,20.0]
[1726150501160,12.429,135.57,135.49,20.0]
[1726150501476,12.429,135.57,135.49,34.70266249]
[1726150501658,12.429,135.57,135.51,14.70266249]
[1726150501858,12.429,135.57,135.48,3.03688054]
[1726150502064,27.13166249,135.57,135.49,20.0]
[1726150502266,0.4503412,135.56,135.49,20.0]
[1726150502674,12.429,135.57,135.49,20.0]
[1726150503083,0.12549,135.56,135.47,20.0]
[1726150503866,23.902374,135.56,135.47,20.0]
[1726150504378,0.4503412,135.55,135.47,20.0]
[1726150504600,0.5507557,135.58,135.49,20.0]
[1726150504905,0.1004145,135.58,135.51,20.0]
[1726150505475,0.1004145,135.58,135.49,20.0]
[1726150506093,24.1282785,135.58,135.49,20.0]
[1726150506799,0.4503412,135.57,135.49,20.0]
[1726150506999,0.12549,135.56,135.49,20.0]
[1726150507304,23.776884,135.55,135.47,20.0]
[1726150507475,23.776884,135.53,135.47,22.95631303]
[1726150508386,12.9668,135.54,135.47,22.95631303]
[1726150508592,0.4503412,135.53,135.49,20.0]
[1726150508897,23.776884,135.56,135.49,20.0]
[1726150509109,0.12549,135.55,135.49,20.0]
[1726150509272,23.776884,135.56,135.47,22.95631303]
[1726150509472,23.776884,135.56,135.47,20.0]
[1726150509705,0.4503412,135.55,135.49,20.0]
[1726150510013,23.776884,135.56,135.49,20.0]
[1726150510394,12.9357,135.57,135.51,20.0]
[1726150510575,0.1004145,135.58,135.51,20.0]
[1726150510976,0.1004145,135.58,135.53,20.0]
[1726150512189,0.1004145,135.58,135.55,20.0]
[1726150513205,0.1004145,135.58,135.53,42.91243767]
[1726150514487,0.1004145,135.58,135.52,20.0]
[1726150514684,0.1004145,135.58,135.5,22.91243767]
[1726150514885,23.776884,135.56,135.48,53.64863767]
[1726150515277,23.776884,135.56,135.48,22.91243767]
[1726150515893,23.776884,135.54,135.46,12.6185]
[1726150516098,23.776884,135.54,135.47,22.91243767]
[1726150517203,31.0326,135.55,135.49,22.91243767]
[1726150517408,12.0764,135.57,135.49,22.91243767]
[1726150517577,12.0764,135.57,135.5,20.0]
[1726150517777,12.0764,135.57,135.52,20.0]
[1726150518010,31.1570145,135.58,135.52,20.0]
[1726150518706,0.1004145,135.58,135.52,20.0]
[1726150518887,0.1004145,135.58,135.54,20.0]
[1726150519083,0.5507557,135.58,135.54,20.0]
[1726150519313,0.5507557,135.58,135.49,35.24093767]
[1726150519611,0.5507557,135.58,135.5,20.0]
[1726150519805,30.1545,135.57,135.47,22.91243767]
[1726150519990,0.4503412,135.56,135.45,22.91243767]
[1726150520196,23.776884,135.54,135.45,22.91243767]
[1726150520390,0.5758312,135.53,135.46,3.94123462]
[1726150520607,0.5758312,135.53,135.45,25.84740633]
[1726150520608,0.4503412,135.53,135.47,22.91243767]
[1726150520791,13.3043,135.55,135.44,7.432]
[1726150521114,13.3043,135.55,135.49,22.91243767]
[1726150521317,13.3043,135.55,135.5,20.0]
[1726150522495,0.4503412,135.54,135.5,20.0]
[1726150522695,13.3043,135.55,135.5,20.0]
[1726150522896,30.1545,135.57,135.51,22.91243767]
[1726150523092,30.1545,135.57,135.52,20.0]
[1726150523287,0.4503412,135.56,135.52,20.0]
[1726150523491,30.1545,135.57,135.5,20.0]
[1726150525911,30.1545,135.57,135.52,20.0]
[1726150526112,30.6048412,135.57,135.52,20.0]
[1726150526407,30.1545,135.57,135.52,20.0]
[1726150526619,0.5758312,135.56,135.5,20.0]
[1726150527589,0.4503412,135.55,135.5,20.0]
[1726150528480,23.776884,135.56,135.5,20.0]
[1726150528685,0.4503412,135.55,135.5,20.0]
[1726150529116,0.4503412,135.54,135.5,20.0]
[1726150529311,0.4503412,135.54,135.48,26.77462243]
[1726150529492,0.12549,135.55,135.48,23.83204719]
[1726150529689,0.12549,135.54,135.48,20.0]
[1726150529896,30.1545,135.57,135.5,20.0]
[1726150530216,30.1545,135.57,135.52,20.0]
[1726150534004,0.1004145,135.58,135.56,20.0]
[1726150534400,0.5507557,135.58,135.56,20.0]
[1726150534615,0.1004145,135.58,135.54,20.0]
[1726150535304,24.0027885,135.58,135.54,20.0]
[1726150535925,0.4503412,135.57,135.54,20.0]
[1726150536629,0.1004145,135.58,135.54,20.0]
[1726150537216,0.5507557,135.58,135.54,20.0]
[1726150537553,30.4206,135.61,135.56,20.0]
[1726150539033,23.776884,135.6,135.56,20.0]
[1726150539414,29.4206,135.61,135.56,20.0]
[1726150539615,23.776884,135.6,135.56,20.0]
[1726150540339,29.4206,135.61,135.56,20.0]
[1726150540642,29.4206,135.61,135.56,22.99963651]
[1726150544039,29.4206,135.61,135.56,24.47493201]
[1726150545066,29.4206,135.61,135.56,24.47449625]
[1726150545430,12.4255,135.63,135.57,22.91243767]
[1726150545633,12.4255,135.63,135.58,20.0]
[1726150545873,30.4589,135.64,135.58,20.0]
[1726150546168,30.4589,135.64,135.59,22.91243767]
[1726150546531,0.4743715,135.65,135.6,20.0]
[1726150546736,30.6029,135.68,135.58,31.5889]
[1726150546737,30.6029,135.68,135.62,20.0]
[1726150549036,0.4743715,135.72,135.65,22.91243767]
[1726150549238,0.4743715,135.72,135.66,20.0]
[1726150550243,0.4743715,135.72,135.64,32.3587]
[1726150550244,253.5,135.78,135.7,20.0]
[1726150550549,22.91243767,135.78,135.7,20.0]
[1726150550944,35.41413767,135.79,135.66,20.0]
[1726150551150,22.91243767,135.77,135.66,20.0]
[1726150551871,30.1784,135.78,135.66,20.0]
[1726150552051,22.91243767,135.77,135.66,20.0]
[1726150552256,13.0694,135.75,135.64,20.0]
[1726150552477,24.027864,135.74,135.64,22.91480536]
[1726150553162,13.0694,135.75,135.66,20.0]
[1726150553349,13.0694,135.75,135.67,24.38490515]
[1726150553548,13.0694,135.75,135.68,20.0]
[1726150555266,43.0563,135.78,135.68,25.84718038]
[1726150555658,0.12549,135.77,135.68,25.84718038]
[1726150555858,0.12549,135.77,135.68,25.7770192]
[1726150556042,0.25098,135.77,135.68,25.77341841]
[1726150556976,24.027864,135.77,135.68,25.77341841]
[1726150557647,24.027864,135.77,135.68,28.7352063]
[1726150558247,24.027864,135.77,135.68,2.96178789]
[1726150558449,24.027864,135.77,135.67,20.0]
[1726150558855,24.027864,135.77,135.67,42.91243767]
[1726150559055,24.027864,135.77,135.69,20.0]
[1726150559552,46.94030167,135.77,135.67,20.0]
[1726150559989,23.776884,135.74,135.67,5.844408]
[1726150560153,23.776884,135.74,135.63,38.84619132]
[1726150560154,0.25098,135.73,135.64,5.84743033]
[1726150560496,23.776884,135.71,135.64,5.84743033]
[1726150560789,23.776884,135.71,135.63,25.84619132]
[1726150560967,23.776884,135.71,135.64,5.84743033]
[1726150561172,0.12549,135.7,135.62,5.84743033]
[1726150561376,0.12549,135.7,135.63,20.0]
[1726150561587,23.776884,135.71,135.63,42.91243767]
[1726150561774,23.776884,135.71,135.63,48.75887673]
[1726150561968,23.776884,135.71,135.65,20.0]
[1726150562168,0.12549,135.7,135.64,5.84643906]
[1726150562363,0.25098,135.7,135.62,5.84643906]
[1726150563176,0.25098,135.7,135.61,3.07818082]
[1726150563859,0.12549,135.7,135.61,45.99061849]
[1726150564059,0.12549,135.7,135.63,20.0]
[1726150565273,0.25098,135.7,135.63,20.0]
[1726150565585,0.25098,135.7,135.64,20.0]
[1726150566375,0.25098,135.7,135.61,23.07818082]
[1726150567466,0.25098,135.7,135.61,3.07818082]
[1726150567782,0.25098,135.7,135.62,20.0]
[1726150568487,0.25098,135.7,135.61,4.55109001]
[1726150569176,0.25098,135.7,135.61,3.07818082]
[1726150569694,68.19563767,135.72,135.61,3.07818082]
[1726150570277,45.2832,135.72,135.61,25.99061849]
[1726150570476,45.2832,135.72,135.64,20.0]
[1726150571088,45.2832,135.72,135.62,20.0]
[1726150572904,22.91243767,135.7,135.61,3.07818082]
[1726150573084,0.12549,135.69,135.61,3.07818082]
[1726150573296,30.7815,135.67,135.61,3.07818082]
[1726150573612,23.776884,135.64,135.61,0.0442248]
[1726150573793,0.25098,135.63,135.61,0.0442248]
[1726150573977,56.013284,135.62,135.61,0.0442248]
[1726150574172,56.138774,135.62,135.61,0.0442248]
[1726150574789,56.264264,135.62,135.61,0.0442248]
[1726150577291,22.91243767,135.64,135.61,0.0442248]
[1726150577292,32.4562,135.64,135.61,0.0442248]
[1726150579898,23.776884,135.63,135.61,0.0442248]
[1726150580336,0.25098,135.62,135.61,0.0442248]
[1726150580629,0.25098,135.62,135.55,7.389]
[1726150580927,23.776884,135.59,135.55,7.389]
[1726150581432,0.12549,135.58,135.55,7.389]
[1726150581620,23.776884,135.59,135.55,7.389]
[1726150582001,45.45949,135.6,135.53,7.8570394]
[1726150582322,23.776884,135.63,135.56,20.0]
[1726150582729,0.25098,135.62,135.56,20.0]
[1726150583833,45.0685,135.64,135.56,20.0]
[1726150585311,23.902374,135.63,135.56,20.0]
[1726150585512,23.902374,135.63,135.56,22.96716235]
[1726150586540,0.12549,135.62,135.56,22.96716235]
[1726150586700,45.0685,135.64,135.56,22.96716235]
[1726150586701,45.0685,135.64,135.56,45.87960002]
[1726150586904,31.9087,135.64,135.56,45.87960002]
[1726150587321,44.5561,135.68,135.58,22.91243767]
[1726150587533,44.5561,135.68,135.59,20.0]
[1726150588045,44.5561,135.68,135.61,20.0]
[1726150588830,44.5561,135.68,135.58,22.91243767]
[1726150589011,44.5561,135.68,135.59,20.0]
[1726150589835,24.027864,135.67,135.59,20.0]
[1726150590814,23.902374,135.67,135.61,20.0]
[1726150591309,31.8914,135.68,135.61,20.0]
[1726150592431,23.776884,135.67,135.61,20.0]
[1726150592728,0.12549,135.66,135.61,20.0]
[1726150593535,0.12549,135.66,135.58,20.0]
[1726150593930,23.776884,135.67,135.6,20.0]
[1726150594433,31.8914,135.68,135.6,20.0]
[1726150595829,13.2438,135.71,135.61,22.91243767]